bitfinex-derivatives/quotes_BTCF0:USTF0_20241116
["timestamp","ask_amount","ask_price","bid_price","bid_amount"]
[1731792090769,0.054929,90966.0,90965.0,0.30709268]
[1731792090972,0.054929,90966.0,90964.0,0.1971609]
[1731792091161,0.054929,90966.0,90963.0,0.00164895]
[1731792091162,0.054929,90966.0,90965.0,0.30709268]
[1731792091370,0.054929,90966.0,90965.0,0.10993178]
[1731792091670,0.054931,90964.0,90963.0,0.00164895]
[1731792094260,0.054931,90964.0,90959.0,0.26288356]
[1731792094261,0.033,90965.0,90959.0,0.26288356]
[1731792094465,0.08793,90965.0,90964.0,0.19711281]
[1731792094668,0.08793,90965.0,90963.0,0.19711281]
[1731792095068,0.054931,90963.0,90962.0,0.19711281]
[1731792095468,0.054934,90959.0,90958.0,0.26288356]
[1731792095678,0.054934,90959.0,90958.0,0.01030684]
[1731792099972,0.08807623,90965.0,90955.0,0.054936]
[1731792099973,0.054935,90957.0,90955.0,0.054936]
[1731792100179,0.054935,90957.0,90956.0,0.37110699]
[1731792100776,0.054935,90957.0,90956.0,0.48104965]
[1731792101676,0.054935,90957.0,90956.0,0.47074266]
[1731792102687,0.054935,90956.0,90955.0,0.26284232]
[1731792102884,0.054937,90953.0,90952.0,0.26284232]
[1731792103074,0.054938,90951.0,90949.0,0.26284232]
[1731792103274,0.054941,90947.0,90946.0,0.26284232]
[1731792103469,0.054942,90945.0,90944.0,0.26284232]
[1731792103675,0.054942,90945.0,90944.0,0.27316362]
[1731792103982,0.054942,90945.0,90944.0,0.27317054]
[1731792104168,0.054939,90951.0,90944.0,0.74392106]
[1731792104376,0.054939,90950.0,90949.0,0.19709346]
[1731792105288,0.054939,90950.0,90948.0,0.19709346]
[1731792105784,0.05494,90948.0,90947.0,0.19709346]
[1731792106082,0.08212,90955.0,90944.0,0.62426215]
[1731792106083,0.054942,90945.0,90944.0,0.62426215]
[1731792106272,0.054942,90945.0,90944.0,0.3608]
[1731792106587,0.054942,90945.0,90944.0,0.37110819]
[1731792106784,0.054942,90945.0,90944.0,0.48106536]
[1731792109594,0.13642672,90955.0,90944.0,0.48106536]
[1731792109595,0.05430672,90955.0,90944.0,0.48106536]
[1731792109774,0.05494,90949.0,90947.0,0.054941]
[1731792109987,0.05494,90949.0,90948.0,0.01030819]
[1731792111172,0.054936,90955.0,90954.0,0.054937]
[1731792111377,0.0641,90964.0,90954.0,0.10436057]
[1731792111378,0.13165739,90963.0,90954.0,0.10436057]
[1731792111572,0.054933,90961.0,90959.0,0.054933]
[1731792112187,0.0051,90968.0,90954.0,0.10436057]
[1731792112188,0.054929,90967.0,90960.0,0.01030639]
[1731792112392,0.054929,90967.0,90966.0,0.46516057]
[1731792112996,0.054929,90967.0,90966.0,0.57509477]
[1731792113579,0.054929,90967.0,90966.0,0.83795692]
[1731792113892,0.054929,90967.0,90966.0,0.62366215]
[1731792114193,0.054929,90967.0,90966.0,0.3608]
[1731792115390,0.054926,90973.0,90971.0,0.054926]
[1731792115579,0.054926,90973.0,90971.0,0.25194793]
[1731792115979,0.054926,90973.0,90972.0,0.3069525]
[1731792116290,0.054926,90973.0,90972.0,0.10993057]
[1731792116490,0.054926,90973.0,90972.0,0.3069525]
[1731792116883,0.054926,90973.0,90972.0,0.10993057]
[1731792117895,0.054926,90973.0,90972.0,0.37279272]
[1731792118297,0.054926,90973.0,90972.0,0.10993057]
[1731792120894,0.054926,90973.0,90972.0,0.47073057]
[1731792121193,0.054922,90979.0,90976.0,0.054923]
[1731792121391,0.05560601,90982.0,90975.0,0.1969786]
[1731792121596,0.054923,90977.0,90972.0,0.3608]
[1731792121796,0.054925,90973.0,90972.0,0.3608]
[1731792122297,0.054925,90973.0,90972.0,0.10991789]
[1731792122594,0.054929,90966.0,90965.0,0.05493]
[1731792122989,0.054929,90966.0,90963.0,0.3608]
[1731792122990,0.054931,90964.0,90963.0,0.3608]
[1731792124386,0.054931,90964.0,90963.0,0.37110564]
[1731792124584,0.054931,90964.0,90963.0,0.3608]
[1731792124798,0.054931,90964.0,90963.0,0.37110592]
[1731792124997,0.054931,90964.0,90963.0,0.3608]
[1731792125595,0.054931,90964.0,90963.0,0.37110591]
[1731792125897,0.054931,90964.0,90963.0,0.3608]
[1731792126297,0.18658839,90964.0,90963.0,0.3608]
[1731792128190,0.054931,90964.0,90963.0,0.3608]
[1731792136911,0.00080001,90971.0,90970.0,0.054927]
[1731792137207,0.00080001,90971.0,90963.0,0.4707342]
[1731792137208,0.054925,90974.0,90973.0,0.054925]
[1731792137509,0.054925,90974.0,90973.0,0.415725]
[1731792138026,0.054925,90974.0,90973.0,0.52564712]
[1731792139004,0.00674923,90978.0,90976.0,0.054923]
[1731792139208,0.00164923,90978.0,90976.0,0.054923]
[1731792139408,0.00164923,90978.0,90977.0,0.01030386]
[1731792139603,0.00164923,90978.0,90977.0,0.12022598]
[1731792140208,0.0051,90983.0,90978.0,0.054922]
[1731792140414,0.054919,90984.0,90982.0,0.52008057]
[1731792140905,0.054919,90984.0,90983.0,0.10991366]
[1731792141707,0.054919,90984.0,90983.0,0.30675111]
[1731792143514,0.054919,90984.0,90983.0,0.10991366]
[1731792145007,0.0051,90988.0,90983.0,0.12021751]
[1731792145210,0.054915,90990.0,90987.0,0.054917]
[1731792145410,0.13165739,90992.0,90987.0,0.054917]
[1731792145715,0.054916,90989.0,90987.0,0.054917]
[1731792147007,0.054916,90989.0,90988.0,0.3608]
[1731792153526,0.48899657,90989.0,90988.0,0.3608]
[1731792153716,0.15927657,90989.0,90988.0,0.3608]
[1731792153906,0.054916,90989.0,90988.0,0.3608]
[1731792154610,0.384636,90989.0,90988.0,0.3608]
[1731792155117,0.054916,90989.0,90988.0,0.3608]
[1731792155714,0.79245739,90989.0,90971.0,0.3608]
[1731792155913,0.054926,90972.0,90968.0,0.00164885]
[1731792156104,0.054928,90969.0,90968.0,0.00164885]
[1731792159515,0.18658539,90969.0,90968.0,0.00164885]
[1731792160213,0.054928,90969.0,90968.0,0.00164885]
[1731792160611,0.18658539,90969.0,90968.0,0.00164885]
[1731792161117,0.24186531,90969.0,90968.0,0.00164885]
[1731792161422,0.054932,90961.0,90960.0,0.3608]
[1731792162414,0.054932,90961.0,90960.0,0.47073783]
[1731792163925,0.054932,90961.0,90960.0,0.3608]
[1731792166024,0.054938,90952.0,90951.0,0.00041]
[1731792168625,0.054938,90952.0,90947.0,0.054941]
[1731792171116,0.0542898,90953.0,90947.0,0.054941]
[1731792171117,0.0542898,90953.0,90947.0,0.415741]
[1731792171417,0.054939,90951.0,90950.0,0.10994931]
[1731792175726,0.52009957,90951.0,90942.0,0.00013508]
[1731792178519,0.054939,90951.0,90942.0,0.00013508]
[1731792179224,0.13730969,90955.0,90942.0,0.00013508]
[1731792179225,0.137059,90950.0,90947.0,0.054941]
[1731792179424,0.137059,90950.0,90943.0,0.46580057]
[1731792180219,0.137059,90950.0,90943.0,0.52074357]
[1731792180619,0.137059,90950.0,90946.0,0.054941]
[1731792180818,0.054939,90950.0,90947.0,0.086541]
[1731792181113,0.054939,90950.0,90947.0,0.0316]
[1731792182028,0.054939,90950.0,90943.0,0.3608]
[1731792183229,0.054939,90950.0,90943.0,0.55763745]
[1731792183426,0.054939,90950.0,90943.0,0.55819745]
[1731792184320,0.054939,90950.0,90944.0,0.19683745]
[1731792185334,0.054939,90950.0,90946.0,0.19683745]
[1731792185928,0.054939,90950.0,90947.0,0.19683745]
[1731792186432,0.054939,90950.0,90948.0,0.19683745]
[1731792186730,0.054939,90950.0,90947.0,0.19683745]
[1731792187318,0.054939,90950.0,90948.0,0.19683745]
[1731792188537,0.054939,90950.0,90949.0,0.20073745]
[1731792189837,0.054939,90950.0,90949.0,0.0039]
[1731792190327,0.054939,90950.0,90949.0,0.20073745]
[1731792192726,0.054939,90950.0,90949.0,0.0039]
[1731792192927,0.054939,90950.0,90949.0,0.20119957]
[1731792193128,0.054939,90950.0,90949.0,0.0039]
[1731792195236,0.18659639,90950.0,90949.0,0.0039]
[1731792195827,0.13165739,90951.0,90950.0,0.054939]
[1731792196038,0.0560212,90956.0,90954.0,0.054937]
[1731792196249,0.0560212,90956.0,90952.0,0.10436057]
[1731792196250,0.054936,90956.0,90955.0,0.054936]
[1731792196538,0.054936,90956.0,90955.0,0.16488712]
[1731792196839,0.054936,90956.0,90955.0,0.054936]
[1731792197041,0.18673441,90956.0,90955.0,0.16487987]
[1731792197344,0.054936,90956.0,90955.0,0.16487987]
[1731792197533,0.18673441,90956.0,90955.0,0.16487987]
[1731792198345,0.054936,90956.0,90955.0,0.17518697]
[1731792201037,0.054936,90956.0,90955.0,0.10994387]
[1731792201346,0.054935,90957.0,90955.0,0.19726318]
[1731792201555,0.054936,90955.0,90954.0,0.19726318]
[1731792201849,0.054937,90953.0,90951.0,0.19726318]
[1731792202043,0.21387841,90953.0,90949.0,0.20116318]
[1731792202344,0.18673641,90951.0,90949.0,0.0039]
[1731792202643,0.13179841,90950.0,90949.0,0.0039]
[1731792203045,0.054938,90951.0,90949.0,0.0039]
[1731792204339,0.054938,90951.0,90950.0,0.19720617]
[1731792204840,0.054938,90951.0,90949.0,0.0039]
[1731792205035,0.054938,90951.0,90950.0,0.19717696]
[1731792205438,0.054938,90951.0,90949.0,0.0039]
[1731792207542,0.13172296,90954.0,90952.0,0.054938]
[1731792207745,0.13172296,90954.0,90949.0,0.10826057]
[1731792207746,0.13172296,90958.0,90957.0,0.054935]
[1731792208054,0.05576122,90961.0,90957.0,0.10436057]
[1731792208243,0.18665496,90962.0,90960.0,0.3608]
[1731792208859,0.24271854,90962.0,90960.0,0.3608]
[1731792210043,0.11099558,90962.0,90960.0,0.3608]
[1731792211557,0.054934,90959.0,90957.0,0.19713483]
[1731792211751,0.13172296,90961.0,90956.0,0.19713483]
[1731792211950,0.13172296,90961.0,90954.0,0.054936]
[1731792211951,0.054935,90958.0,90954.0,0.054936]
[1731792212150,0.13171013,90956.0,90955.0,0.10994085]
[1731792212544,0.13171013,90956.0,90954.0,0.054936]
[1731792212545,0.13171013,90957.0,90954.0,0.054936]
[1731792212741,0.13171013,90956.0,90955.0,0.10994085]
[1731792213341,0.054935,90957.0,90955.0,0.16487685]
[1731792213342,0.18664513,90957.0,90955.0,0.16487685]
[1731792213755,0.18664513,90957.0,90955.0,0.054936]
[1731792214055,0.13171013,90956.0,90955.0,0.054936]
[1731792214260,0.18664513,90957.0,90955.0,0.054936]
[1731792214452,0.18664513,90957.0,90955.0,0.16487926]
[1731792215861,0.13171013,90956.0,90955.0,0.16487926]
[1731792216061,0.18664513,90957.0,90955.0,0.16487926]
[1731792217757,0.054935,90956.0,90955.0,0.16487926]
[1731792217958,0.1317105,90959.0,90958.0,0.054934]
[1731792218263,0.054932,90962.0,90961.0,0.054932]
[1731792220165,0.054932,90962.0,90961.0,0.06523826]
[1731792220363,0.0051,90968.0,90961.0,0.06523826]
[1731792220364,0.0051,90968.0,90967.0,0.054929]
[1731792220664,0.0051,90975.0,90974.0,0.054925]
[1731792220863,0.054919,90984.0,90983.0,0.054919]
[1731792221066,0.054919,90984.0,90983.0,0.415719]
[1731792221259,0.054919,90984.0,90983.0,0.6124896]
[1731792221565,0.054919,90984.0,90983.0,0.71685241]
[1731792221965,0.054919,90984.0,90983.0,0.52007957]
[1731792225264,0.08204,90990.0,90987.0,0.054917]
[1731792225469,0.054916,90988.0,90987.0,0.054917]
[1731792225859,0.0309,90992.0,90991.0,0.054914]
[1731792226158,0.0051,90999.0,90998.0,0.05491]
[1731792226357,0.00052467,91003.0,90998.0,0.05491]
[1731792226358,0.00052467,91003.0,91002.0,0.054908]
[1731792226564,0.00284882,91007.0,91006.0,0.054905]
[1731792226966,0.00284882,91007.0,91006.0,0.16478726]
[1731792227161,0.00284882,91007.0,91006.0,0.16490198]
[1731792228658,0.00119986,91007.0,91006.0,0.16490198]
[1731792232888,0.00119986,91007.0,91006.0,0.26926255]
[1731792239372,0.0015928,91011.0,91006.0,0.26926255]
[1731792239577,0.0015928,91011.0,91010.0,0.415703]
[1731792239766,0.00170558,91016.0,91015.0,0.0549]
[1731792240084,0.00170558,91016.0,91015.0,0.52006057]
[1731792240266,0.00170558,91016.0,91015.0,0.629938]
[1731792244169,0.00170558,91016.0,91015.0,0.52557743]
[1731792244371,0.00170558,91016.0,91015.0,0.47067743]
[1731792244581,0.00170558,91016.0,91015.0,0.3608]
[1731792244983,0.00170558,91016.0,91006.0,0.00011472]
[1731792245178,0.054905,91007.0,91006.0,0.00011472]
[1731792248379,0.054905,91007.0,90997.0,0.0039]
[1731792248380,0.05491,90998.0,90997.0,0.0039]
[1731792249270,0.05491,90998.0,90997.0,0.00400189]
[1731792250274,0.05289052,90998.0,90997.0,0.00400189]
[1731792251978,0.05472885,91002.0,90997.0,0.00400189]
[1731792252182,0.1317105,91008.0,91003.0,0.054907]
[1731792252372,0.0633,91010.0,91009.0,0.054903]
[1731792252680,0.0633,91010.0,91009.0,0.415703]
[1731792252882,0.0633,91010.0,91009.0,0.52559612]
[1731792253069,0.05660458,91016.0,91009.0,0.47069312]
[1731792253272,0.05660458,91016.0,91014.0,0.0549]
[1731792253979,0.00170558,91016.0,91014.0,0.0549]
[1731792255981,0.00170558,91016.0,91015.0,0.10987199]
[1731792256491,0.00170558,91016.0,91015.0,0.42058342]
[1731792256692,0.00170558,91016.0,91015.0,0.21423256]
[1731792257290,0.00168796,91020.0,91019.0,0.054897]
[1731792257588,0.00168796,91020.0,91019.0,0.42599579]
[1731792257980,0.00168796,91020.0,91019.0,0.53586718]
[1731792258476,0.1865915,91047.0,91022.0,0.054896]
[1731792258682,0.00080001,91048.0,91032.0,0.41569]
[1731792258884,0.3608,91050.0,91032.0,0.78179616]
[1731792258885,0.4164196,91050.0,91032.0,0.78179616]
[1731792259082,0.0556196,91050.0,91032.0,0.89164703]
[1731792259388,0.00199445,91051.0,91041.0,0.054884]
[1731792259587,0.00199445,91051.0,91041.0,0.53048335]
[1731792259887,0.00199445,91051.0,91041.0,0.52018665]
[1731792260087,0.00199445,91051.0,91041.0,0.6403334]
[1731792260477,0.00199445,91051.0,91041.0,0.64033346]
[1731792261297,0.00199445,91051.0,91041.0,0.83622278]
[1731792261473,0.00199445,91051.0,91041.0,0.63003752]
[1731792261789,0.00199445,91051.0,91041.0,0.82592286]
[1731792262087,0.00199445,91051.0,91041.0,0.63003752]
[1731792262292,0.00199445,91051.0,91041.0,0.82582008]
[1731792262587,0.00199445,91051.0,91041.0,0.63003752]
[1731792263779,0.00199445,91051.0,91045.0,0.054882]
[1731792264089,0.00199445,91051.0,91045.0,0.415682]
[1731792264387,0.00199445,91051.0,91045.0,0.52552201]
[1731792264599,0.00228915,91055.0,91050.0,0.15923957]
[1731792264778,0.00228915,91055.0,91054.0,0.415676]
[1731792265177,0.00228915,91055.0,91054.0,0.52550274]
[1731792267190,0.00228915,91055.0,91054.0,0.60742274]
[1731792267888,0.00228915,91055.0,91054.0,0.52550274]
[1731792268105,0.00228915,91055.0,91054.0,0.47062674]
[1731792268287,0.054879,91051.0,91049.0,0.054879]
[1731792268685,0.054879,91051.0,91050.0,0.2141849]
[1731792269097,0.054879,91051.0,91050.0,0.10982433]
[1731792269394,0.054882,91045.0,91044.0,0.0039]
[1731792274598,0.05488,91049.0,91045.0,0.054882]
[1731792274804,0.05488,91049.0,91046.0,0.054881]
[1731792275002,0.05488,91049.0,91047.0,0.05488]
[1731792275200,0.05488,91049.0,91047.0,0.16471338]
[1731792275502,0.05488,91049.0,91047.0,0.05488]
[1731792275700,0.05488,91049.0,91048.0,0.10983338]
[1731792276301,0.05488,91048.0,91044.0,0.3647]
[1731792276704,0.05488,91048.0,91045.0,0.10983157]
[1731792277004,0.00228915,91055.0,91045.0,0.10983157]
[1731792277190,0.054877,91053.0,91050.0,0.054878]
[1731792277389,0.00228915,91055.0,91045.0,0.10983157]
[1731792277390,0.054881,91047.0,91045.0,0.10983157]
[1731792277590,0.054881,91046.0,91044.0,0.419582]
[1731792277993,0.054881,91046.0,91045.0,0.10983398]
[1731792282412,0.054878,91052.0,91045.0,0.10983398]
[1731792282603,0.054878,91052.0,91048.0,0.05488]
[1731792282802,0.00228915,91055.0,91045.0,0.10983398]
[1731792283003,0.054878,91052.0,91051.0,0.054878]
[1731792283593,0.00228915,91055.0,91045.0,0.10982976]
[1731792283594,0.054879,91049.0,91045.0,0.054882]
[1731792283800,0.054881,91046.0,91044.0,0.3647]
[1731792284300,0.054881,91046.0,91045.0,0.10983579]
[1731792285496,0.054878,91052.0,91051.0,0.054877]
[1731792286000,0.054878,91052.0,91051.0,0.10436057]
[1731792286208,0.054879,91050.0,91044.0,0.62623454]
[1731792286409,0.054882,91045.0,91044.0,0.3647]
[1731792286793,0.054882,91045.0,91044.0,0.47452795]
[1731792287405,0.054882,91045.0,91044.0,0.67080483]
[1731792288512,0.054882,91045.0,91044.0,0.47452795]
[1731792289014,0.1865925,91045.0,91044.0,0.01419644]
[1731792289317,0.054882,91045.0,91044.0,0.0039]
[1731792289499,0.21965213,91045.0,91044.0,0.0039]
[1731792289703,0.25275213,91045.0,91044.0,0.0039]
[1731792289914,0.087982,91045.0,91044.0,0.0039]
[1731792290414,0.25275213,91045.0,91044.0,0.0039]
[1731792290804,0.087982,91045.0,91044.0,0.0039]
[1731792291005,0.25275213,91045.0,91044.0,0.0039]
[1731792292009,0.30848969,91045.0,91044.0,0.0039]
[1731792293302,0.14371956,91045.0,91044.0,0.0039]
[1731792293821,0.30848969,91045.0,91044.0,0.0039]
[1731792294511,0.14371956,91045.0,91044.0,0.0039]
[1731792295518,0.19711558,91045.0,91044.0,0.0039]
[1731792299319,0.14371956,91045.0,91044.0,0.0039]
[1731792299521,0.19711538,91045.0,91044.0,0.0039]
[1731792300115,0.054884,91042.0,91041.0,0.00014208]
[1731792300419,0.57344039,91042.0,91041.0,0.00014208]
[1731792300621,0.90296039,91042.0,91041.0,0.00014208]
[1731792300922,0.54216039,91042.0,91041.0,0.00014208]
[1731792301106,0.15924457,91042.0,91041.0,0.00014208]
[1731792301615,0.21264168,91042.0,91041.0,0.00014208]
[1731792301801,0.902962,91042.0,91041.0,0.00014208]
[1731792302008,0.902962,91042.0,91041.0,8e-08]
[1731792304522,0.90296376,91042.0,91041.0,8e-08]
[1731792304723,0.6842472,91042.0,91041.0,8e-08]
[1731792304915,0.52004457,91042.0,91041.0,8e-08]
[1731792305525,0.15924457,91042.0,91041.0,8e-08]
[1731792305819,0.3234472,91042.0,91041.0,8e-08]
[1731792306508,0.15924457,91042.0,91041.0,8e-08]
[1731792306710,0.24116457,91042.0,91041.0,8e-08]
[1731792308215,0.136804,91042.0,91041.0,8e-08]
[1731792308716,0.054884,91042.0,91041.0,8e-08]
[1731792308919,0.136804,91042.0,91041.0,8e-08]
[1731792309825,0.054884,91042.0,91041.0,0.36080008]
[1731792311225,0.44356001,91051.0,91041.0,0.36080008]
[1731792311226,0.13133805,91048.0,91041.0,0.36080008]
[1731792311530,0.13133805,91048.0,91047.0,0.05488]
[1731792311734,0.13133805,91049.0,91047.0,0.05488]
[1731792312029,0.18621705,91049.0,91047.0,0.05488]
[1731792312413,0.054879,91049.0,91047.0,0.05488]
[1731792313215,0.18621705,91049.0,91047.0,0.05488]
[1731792313429,0.054879,91049.0,91047.0,0.05488]
[1731792314319,0.18621705,91049.0,91047.0,0.05488]
[1731792314522,0.054879,91049.0,91047.0,0.05488]
[1731792314726,0.13133805,91052.0,91048.0,0.21419274]
[1731792315024,0.00228915,91055.0,91053.0,0.054877]
[1731792315228,0.00228915,91055.0,91054.0,0.01029532]
[1731792315415,0.00228915,91055.0,91053.0,0.054877]
[1731792315821,0.00228915,91055.0,91054.0,0.10982976]
[1731792316026,0.00164852,91062.0,91058.0,0.054874]
[1731792316327,0.00164852,91062.0,91058.0,0.15923457]
[1731792316829,0.054873,91060.0,91058.0,0.16469833]
[1731792317028,0.054873,91060.0,91058.0,0.10982433]
[1731792317629,0.00164852,91062.0,91058.0,0.10982433]
[1731792317927,0.00164852,91062.0,91058.0,0.10436057]
[1731792318122,0.00164852,91062.0,91058.0,0.21418008]
[1731792318326,0.00164852,91062.0,91058.0,0.10981951]
[1731792318735,0.05780197,91059.0,91058.0,0.10981951]
[1731792318934,0.05780197,91059.0,91055.0,0.3608]
[1731792318935,0.054875,91056.0,91055.0,0.3608]
[1731792319439,0.00292897,91059.0,91049.0,0.0956]
[1731792319637,0.054879,91050.0,91049.0,0.0624]
[1731792322129,0.054879,91050.0,91049.0,0.117279]
[1731792323836,0.054879,91050.0,91049.0,0.0624]
[1731792324135,0.054881,91046.0,91045.0,0.3608]
[1731792325732,0.054884,91042.0,91038.0,0.054885]
[1731792325932,0.054884,91042.0,91037.0,0.3608]
[1731792325933,0.054884,91042.0,91039.0,0.054885]
[1731792328236,0.054884,91042.0,91041.0,0.05488408]
[1731792330941,0.054884,91042.0,91041.0,8e-08]
[1731792339442,0.18622205,91042.0,91041.0,8e-08]
[1731792339646,0.21923976,91042.0,91041.0,8e-08]
[1731792339846,0.054884,91042.0,91041.0,8e-08]
[1731792340141,0.21924008,91042.0,91041.0,8e-08]
[1731792340347,0.10827695,91042.0,91041.0,8e-08]
[1731792341140,0.2520947,91042.0,91041.0,8e-08]
[1731792341331,0.43779695,91042.0,91041.0,8e-08]
[1731792341534,0.43780011,91042.0,91041.0,8e-08]
[1731792342136,0.10828011,91042.0,91041.0,8e-08]
[1731792343643,0.25195801,91042.0,91041.0,8e-08]
[1731792343855,0.30535412,91042.0,91041.0,8e-08]
[1731792344238,0.10828011,91042.0,91041.0,8e-08]
[1731792344438,0.2519345,91042.0,91041.0,8e-08]
[1731792344642,0.30533061,91042.0,91041.0,8e-08]
[1731792346147,0.30532172,91042.0,91041.0,8e-08]
[1731792346444,0.30532172,91042.0,91027.0,0.0051]
[1731792346445,0.054892,91028.0,91027.0,0.0051]
[1731792346636,0.054895,91023.0,91022.0,0.36244761]
[1731792347548,0.136735,91023.0,91022.0,0.36244761]
[1731792347735,0.136735,91023.0,91022.0,0.00164761]
[1731792348237,0.054896,91021.0,91020.0,0.00012747]
[1731792349548,0.10994843,91021.0,91020.0,0.00012747]
[1731792349755,0.054896,91021.0,91020.0,0.36092747]
[1731792350446,0.054896,91021.0,91020.0,0.37122709]
[1731792350645,0.0551345,91023.0,91021.0,0.054896]
[1731792350947,0.054894,91025.0,91024.0,0.054894]
[1731792351540,0.03,91032.0,91020.0,0.36092747]
[1731792351737,0.05489,91031.0,91028.0,0.3608]
[1731792351937,0.05489,91031.0,91028.0,0.415692]
[1731792352540,0.054891,91030.0,91028.0,0.3608]
[1731792354751,0.18627799,91030.0,91028.0,0.3608]
[1731792354951,0.26811799,91030.0,91028.0,0.3608]
[1731792355755,0.13138699,91029.0,91028.0,0.3608]
[1731792356059,0.136731,91030.0,91028.0,0.3608]
[1731792356743,0.08184,91030.0,91028.0,0.3608]
[1731792357053,0.054895,91023.0,91022.0,0.0308]
[1731792357953,0.18634974,91028.0,91025.0,0.054893]
[1731792358137,0.054892,91028.0,91025.0,0.054893]
[1731792358538,0.054893,91026.0,91025.0,0.054893]
[1731792358838,0.054894,91025.0,91022.0,0.0308]
[1731792359238,0.08184,91030.0,91022.0,0.0308]
[1731792359436,0.054894,91024.0,91022.0,0.0308]
[1731792359837,0.08184,91030.0,91022.0,0.0308]
[1731792360042,0.054895,91023.0,91022.0,0.0308]
[1731792361048,0.05368432,91032.0,91022.0,0.0308]
[1731792361255,0.00164808,91040.0,91030.0,0.054891]
[1731792361256,0.05489,91031.0,91030.0,0.054891]
[1731792361450,0.054888,91036.0,91035.0,0.054887]
[1731792364055,0.05748511,91040.0,91039.0,0.054885]
[1731792364248,0.05748511,91040.0,91039.0,0.415685]
[1731792364553,0.00164808,91040.0,91039.0,0.415685]
[1731792364749,0.00164808,91040.0,91039.0,0.61231547]
[1731792364945,0.00164808,91040.0,91039.0,0.64271547]
[1731792365145,0.00164808,91040.0,91039.0,0.446085]
[1731792365852,0.00164808,91040.0,91039.0,0.55592743]
[1731792366250,0.05488,91048.0,91039.0,0.76321639]
[1731792366554,0.05488,91048.0,91047.0,0.41568]
[1731792367255,0.054877,91054.0,91051.0,0.054878]
[1731792367440,0.054877,91052.0,91051.0,0.054878]
[1731792368857,0.05358404,91056.0,91051.0,0.054878]
[1731792369040,0.0638,91067.0,91055.0,0.3608]
[1731792369041,0.00261563,91064.0,91055.0,0.3608]
[1731792369241,0.05780297,91059.0,91058.0,0.054874]
[1731792369543,0.05780297,91059.0,91055.0,0.3608]
[1731792369544,0.054875,91056.0,91055.0,0.3608]
[1731792369742,0.054875,91056.0,91049.0,0.10982795]
[1731792369743,0.054878,91051.0,91049.0,0.19637693]
[1731792370053,0.054878,91051.0,91039.0,0.08957287]
[1731792370054,0.054878,91052.0,91039.0,0.0304]
[1731792370255,0.054879,91050.0,91048.0,0.05488]
[1731792370852,0.05488,91048.0,91047.0,0.3608]
[1731792371045,0.24497001,91055.0,91047.0,0.3608]
[1731792371239,0.054878,91051.0,91048.0,0.05488]
[1731792371741,0.0818,91055.0,91048.0,0.05488]
[1731792371742,0.054879,91050.0,91048.0,0.05488]
[1731792371938,0.13137001,91057.0,91047.0,0.3608]
[1731792372137,0.393,91058.0,91053.0,0.10436057]
[1731792372138,0.3608,91058.0,91053.0,0.10436057]
[1731792372350,0.00292897,91059.0,91057.0,0.054874]
[1731792372549,0.05780197,91059.0,91057.0,0.054874]
[1731792375252,0.054874,91058.0,91057.0,0.054874]
[1731792380058,0.054874,91058.0,91057.0,0.415674]
[1731792380361,0.054874,91058.0,91057.0,0.3608]
[1731792381254,0.00292897,91059.0,91058.0,0.054874]
[1731792383248,0.00292897,91059.0,91058.0,0.26905408]
[1731792383454,0.00261563,91064.0,91058.0,0.26905408]
[1731792383455,0.00261563,91064.0,91063.0,0.054871]
[1731792384046,1e-08,91064.0,91063.0,0.16469051]
[1731792387465,1e-08,91064.0,91063.0,0.36082541]
[1731792388160,1e-08,91064.0,91063.0,0.16469051]
[1731792388663,1e-08,91064.0,91063.0,0.36082541]
[1731792389065,1e-08,91064.0,91063.0,0.16469051]
[1731792389865,1e-08,91064.0,91063.0,0.054871]
[1731792391749,1e-08,91064.0,91063.0,0.16468448]
[1731792397562,1e-08,91064.0,91063.0,0.054871]
[1731792398562,0.05487001,91064.0,91063.0,0.054871]
[1731792398957,0.18621499,91064.0,91063.0,0.054871]
[1731792399150,0.054871,91062.0,91061.0,0.3608]
[1731792400064,0.18627379,91062.0,91061.0,0.3608]
[1731792400258,0.054871,91062.0,91061.0,0.3608]
[1731792401271,0.10824804,91062.0,91061.0,0.3608]
[1731792401870,0.054878,91050.0,91049.0,0.054879]
[1731792404078,0.05488,91048.0,91047.0,0.3608]
[1731792404559,0.18635801,91048.0,91047.0,0.3608]
[1731792404868,0.05488,91048.0,91047.0,0.3608]
[1731792405384,0.0302,91061.0,91047.0,0.3608]
[1731792405563,0.0302,91061.0,91051.0,0.054878]
[1731792405858,0.054877,91053.0,91051.0,0.054878]
[1731792406580,0.13144979,91052.0,91051.0,0.054878]
[1731792406870,0.054877,91053.0,91051.0,0.054878]
[1731792411778,0.054877,91053.0,91051.0,0.25140715]
[1731792412077,0.054877,91053.0,91051.0,0.054878]
[1731792412479,0.054877,91053.0,91051.0,0.25140715]
[1731792412881,0.054877,91053.0,91052.0,0.06838604]
[1731792413780,0.054875,91057.0,91056.0,0.054875]
[1731792414172,0.18628635,91057.0,91056.0,0.054875]
[1731792414576,0.054875,91057.0,91056.0,0.054875]
[1731792414782,0.054875,91057.0,91055.0,0.3608]
[1731792414968,0.18628635,91057.0,91055.0,0.3608]
[1731792415674,0.054875,91057.0,91055.0,0.3608]
[1731792416578,0.13141838,91056.0,91055.0,0.3608]
[1731792416776,0.18629338,91057.0,91055.0,0.3608]
[1731792417083,0.0302,91061.0,91055.0,0.3608]
[1731792417084,0.18629338,91056.0,91055.0,0.3608]
[1731792417381,0.054875,91056.0,91055.0,0.3608]
[1731792418483,0.18630252,91056.0,91055.0,0.3608]
[1731792420767,0.13142752,91056.0,91055.0,0.415675]
[1731792420973,0.13142752,91058.0,91055.0,0.3608]
[1731792421182,0.13142752,91058.0,91057.0,0.12326004]
[1731792421483,0.054872,91062.0,91057.0,0.06838604]
[1731792421685,0.13145368,91059.0,91058.0,0.054874]
[1731792421879,0.12325904,91059.0,91058.0,0.054874]
[1731792422277,0.06838604,91059.0,91056.0,0.19650283]
[1731792422476,0.054875,91056.0,91055.0,0.3608]
[1731792423875,0.054875,91056.0,91051.0,0.054878]
[1731792423876,0.13148484,91057.0,91051.0,0.19660014]
[1731792424180,0.0318,91058.0,91045.0,0.054881]
[1731792424181,0.054878,91051.0,91050.0,0.19660014]